[Event "Titled Tuesday Blitz May 23 Early 2023"]
[White "Shuvalov, Evgenij"]
[Black "Mazurkiewicz, Michal"]
[WhiteFideId "4187237"]
[BlackFideId "1124943"]
[WhiteElo "2080"]
[BlackElo "2054"]
[Result "1-0"]
[Round "08"]
[TimeControl "180+2"]
[Date "2023.05.23"]
[WhiteClock "0:00:13"]
[BlackClock "0:00:07"]

1. d4 {[%clk 0:03:00]}  Nf6 {[%clk 0:02:59]} 2. c4 {[%clk 0:03:00]}  e5 {[%clk 0:03:00]} 3. dxe5 {[%clk 0:02:58]}  Ng4 {[%clk 0:03:00]} 4. e3 {[%clk 0:02:57]}  Nxe5 {[%clk 0:03:00]} 5. f4 {[%clk 0:02:57]}  Nec6 {[%clk 0:02:59]} 6. Nc3 {[%clk 0:02:57]}  Bb4 {[%clk 0:02:59]} 7. Bd2 {[%clk 0:02:57]}  O-O {[%clk 0:02:58]} 8. Bd3 {[%clk 0:02:54]}  g6 {[%clk 0:02:50]} 9. h4 {[%clk 0:02:53]}  h5 {[%clk 0:02:42]} 10. g4 {[%clk 0:02:50]}  hxg4 {[%clk 0:02:37]} 11. Qxg4 {[%clk 0:02:41]}  d5 {[%clk 0:02:35]} 12. Qg2 {[%clk 0:02:40]}  d4 {[%clk 0:02:17]} 13. Bxg6 {[%clk 0:01:13]}  dxc3 {[%clk 0:02:08]} 14. bxc3 {[%clk 0:01:06]}  Qf6 {[%clk 0:02:01]} 15. Bd3+ {[%clk 0:00:49]}  Kh8 {[%clk 0:02:00]} 16. Qe4 {[%clk 0:00:46]}  Qg7 {[%clk 0:01:51]} 17. cxb4 {[%clk 0:00:44]}  Qxa1+ {[%clk 0:01:49]} 18. Kf2 {[%clk 0:00:40]}  f5 {[%clk 0:01:34]} 19. Qf3 {[%clk 0:00:35]}  Qg7 {[%clk 0:01:23]} 20. Ne2 {[%clk 0:00:34]}  Nd7 {[%clk 0:00:37]} 21. Rg1 {[%clk 0:00:33]}  Qh6 {[%clk 0:00:30]} 22. Rg5 {[%clk 0:00:31]}  Nf6 {[%clk 0:00:29]} 23. Bc3 {[%clk 0:00:31]}  Kh7 {[%clk 0:00:12]} 24. Bxf6 {[%clk 0:00:26]}  Qxf6 {[%clk 0:00:13]} 25. Ng3 {[%clk 0:00:17]}  Rg8 {[%clk 0:00:11]} 26. Qh5+ {[%clk 0:00:15]}  Qh6 {[%clk 0:00:11]} 27. Qf7+ {[%clk 0:00:16]}  Rg7 {[%clk 0:00:10]} 28. Nxf5 {[%clk 0:00:15]}  Rxf7 {[%clk 0:00:09]} 29. Nxh6+ {[%clk 0:00:14]}  Kxh6 {[%clk 0:00:10]} 30. Rg6+ {[%clk 0:00:13]}  Kh5 {[%clk 0:00:11]} 31. Rg5+ {[%clk 0:00:13]}  Kxh4 {[%clk 0:00:11]} 32. Be2 {[%clk 0:00:13]}  Bd7 {[%clk 0:00:07]} 33. Rh5# {[%clk 0:00:13]} 1-0


[Site "https://www.chess.com"]

[Event "Titled Tuesday Blitz May 23 Early 2023"]
[White "Ginzburg, Yakov"]
[Black "Matveeva, Olga"]
[WhiteFideId "4157176"]
[BlackFideId "24107018"]
[WhiteElo "2305"]
[BlackElo "2009"]
[Result "0-1"]
[Round "08"]
[TimeControl "180+2"]
[Date "2023.05.23"]
[WhiteClock "0:00:47"]
[BlackClock "0:00:59"]

1. e4 {[%clk 0:02:59]}  e6 {[%clk 0:03:00]} 2. d4 {[%clk 0:02:59]}  d5 {[%clk 0:03:00]} 3. e5 {[%clk 0:02:59]}  c5 {[%clk 0:03:00]} 4. Qg4 {[%clk 0:03:00]}  cxd4 {[%clk 0:02:56]} 5. Bd3 {[%clk 0:02:59]}  Nc6 {[%clk 0:02:52]} 6. Nf3 {[%clk 0:03:00]}  Bd7 {[%clk 0:02:47]} 7. O-O {[%clk 0:02:58]}  h5 {[%clk 0:02:44]} 8. Qg3 {[%clk 0:02:56]}  Nh6 {[%clk 0:02:36]} 9. Bg5 {[%clk 0:02:49]}  Be7 {[%clk 0:02:32]} 10. Bxe7 {[%clk 0:02:46]}  Qxe7 {[%clk 0:02:33]} 11. Qxg7 {[%clk 0:02:42]}  O-O-O {[%clk 0:02:32]} 12. h3 {[%clk 0:02:34]}  Rdg8 {[%clk 0:02:14]} 13. Qf6 {[%clk 0:02:34]}  Qxf6 {[%clk 0:02:09]} 14. exf6 {[%clk 0:02:35]}  e5 {[%clk 0:02:08]} 15. Bb5 {[%clk 0:02:31]}  Bxh3 {[%clk 0:02:05]} 16. Re1 {[%clk 0:01:58]}  Bxg2 {[%clk 0:01:59]} 17. Nxe5 {[%clk 0:01:57]}  Be4+ {[%clk 0:01:57]} 18. Kf1 {[%clk 0:01:51]}  Nxe5 {[%clk 0:01:56]} 19. Nd2 {[%clk 0:01:50]}  Nf3 {[%clk 0:01:45]} 20. Nxf3 {[%clk 0:01:47]}  Bxf3 {[%clk 0:01:46]} 21. Re7 {[%clk 0:01:44]}  Ng4 {[%clk 0:01:39]} 22. Ke1 {[%clk 0:01:34]}  Nxf6 {[%clk 0:01:32]} 23. Rxf7 {[%clk 0:01:34]}  Rg1+ {[%clk 0:01:29]} 24. Bf1 {[%clk 0:01:31]}  Bg2 {[%clk 0:01:26]} 25. Ke2 {[%clk 0:01:21]}  Bxf1+ {[%clk 0:01:22]} 26. Kf3 {[%clk 0:01:19]}  Ne4 {[%clk 0:01:16]} 27. Kf4 {[%clk 0:01:16]}  h4 {[%clk 0:01:14]} 28. c4 {[%clk 0:01:06]}  h3 {[%clk 0:01:12]} 29. cxd5 {[%clk 0:01:07]}  h2 {[%clk 0:01:13]} 30. Rc1+ {[%clk 0:01:07]}  Kb8 {[%clk 0:01:11]} 31. Kxe4 {[%clk 0:00:56]}  h1=Q+ {[%clk 0:01:10]} 32. Kxd4 {[%clk 0:00:56]}  Qh4+ {[%clk 0:01:04]} 33. f4 {[%clk 0:00:56]}  Qf2+ {[%clk 0:01:02]} 34. Ke4 {[%clk 0:00:52]}  Bd3+ {[%clk 0:00:59]} 35. Kxd3 {[%clk 0:00:47]}  Rxc1 {[%clk 0:00:59]} 0-1


[Site "https://www.chess.com"]

[Event "Titled Tuesday Blitz May 23 Early 2023"]
[White "Staudenhocker43"]
[Black "Makhmudov, Shukhrat"]
[BlackFideId "14200775"]
[WhiteElo "2521"]
[BlackElo "2135"]
[Result "1-0"]
[Round "08"]
[TimeControl "180+2"]
[Date "2023.05.23"]
[WhiteClock "0:00:17"]
[BlackClock "0:00:00"]

1. Nf3 {[%clk 0:03:00]}  d5 {[%clk 0:02:59]} 2. e3 {[%clk 0:02:58]}  Nf6 {[%clk 0:02:59]} 3. b3 {[%clk 0:02:58]}  Bg4 {[%clk 0:02:55]} 4. Bb2 {[%clk 0:02:58]}  Nbd7 {[%clk 0:02:55]} 5. c4 {[%clk 0:02:58]}  c6 {[%clk 0:02:53]} 6. Be2 {[%clk 0:02:57]}  e5 {[%clk 0:02:53]} 7. Nxe5 {[%clk 0:02:53]}  Bxe2 {[%clk 0:02:50]} 8. Qxe2 {[%clk 0:02:53]}  Nxe5 {[%clk 0:02:50]} 9. Bxe5 {[%clk 0:02:53]}  Bd6 {[%clk 0:02:43]} 10. Bb2 {[%clk 0:02:43]}  O-O {[%clk 0:02:42]} 11. O-O {[%clk 0:02:43]}  Re8 {[%clk 0:02:42]} 12. d3 {[%clk 0:02:35]}  h5 {[%clk 0:02:10]} 13. Bxf6 {[%clk 0:02:28]}  Qxf6 {[%clk 0:02:10]} 14. Nd2 {[%clk 0:02:28]}  h4 {[%clk 0:02:04]} 15. cxd5 {[%clk 0:02:14]}  cxd5 {[%clk 0:02:04]} 16. Qf3 {[%clk 0:02:10]}  Qe5 {[%clk 0:02:01]} 17. g3 {[%clk 0:02:10]}  Qc3 {[%clk 0:01:03]} 18. Rfd1 {[%clk 0:02:05]}  Bb4 {[%clk 0:00:34]} 19. Nf1 {[%clk 0:01:48]}  Rad8 {[%clk 0:00:28]} 20. Rac1 {[%clk 0:01:34]}  Qb2 {[%clk 0:00:28]} 21. Rc7 {[%clk 0:01:32]}  Rf8 {[%clk 0:00:25]} 22. Rxb7 {[%clk 0:01:32]}  Bc5 {[%clk 0:00:19]} 23. d4 {[%clk 0:01:31]}  Bb6 {[%clk 0:00:19]} 24. Rd2 {[%clk 0:01:28]}  Qc1 {[%clk 0:00:19]} 25. Re7 {[%clk 0:01:19]}  h3 {[%clk 0:00:18]} 26. Re5 {[%clk 0:01:08]}  Rd6 {[%clk 0:00:12]} 27. Rxd5 {[%clk 0:01:05]}  Rc6 {[%clk 0:00:12]} 28. Rh5 {[%clk 0:00:51]}  Rf6 {[%clk 0:00:11]} 29. Qg4 {[%clk 0:00:43]}  g6 {[%clk 0:00:03]} 30. Rxh3 {[%clk 0:00:42]}  Kg7 {[%clk 0:00:02]} 31. Qd1 {[%clk 0:00:36]}  Qc6 {[%clk 0:00:02]} 32. Rh4 {[%clk 0:00:27]}  Qd7 {[%clk 0:00:02]} 33. d5 {[%clk 0:00:20]}  Ba5 {[%clk 0:00:01]} 34. Rd3 {[%clk 0:00:18]}  Bd8 {[%clk 0:00:00]} 35. Rf4 {[%clk 0:00:17]} 1-0


[Site "https://www.chess.com"]

[Event "Titled Tuesday Blitz May 23 Early 2023"]
[White "Reprintsev, Alexander"]
[Black "Goswami, Vedant"]
[WhiteFideId "14100541"]
[BlackFideId "5003725"]
[WhiteElo "2218"]
[BlackElo "2011"]
[Result "1-0"]
[Round "08"]
[TimeControl "180+2"]
[Date "2023.05.23"]
[WhiteClock "0:00:09"]
[BlackClock "0:00:00"]

1. e4 {[%clk 0:03:00]}  d6 {[%clk 0:02:53]} 2. d4 {[%clk 0:03:00]}  g6 {[%clk 0:02:32]} 3. Nc3 {[%clk 0:02:58]}  Bg7 {[%clk 0:02:29]} 4. h4 {[%clk 0:02:57]}  h6 {[%clk 0:02:28]} 5. f4 {[%clk 0:02:56]}  Nc6 {[%clk 0:02:26]} 6. d5 {[%clk 0:02:56]}  Nd4 {[%clk 0:02:24]} 7. Be3 {[%clk 0:02:55]}  c5 {[%clk 0:02:19]} 8. dxc6 {[%clk 0:02:55]}  Nxc6 {[%clk 0:02:17]} 9. h5 {[%clk 0:02:56]}  gxh5 {[%clk 0:02:10]} 10. Qxh5 {[%clk 0:02:47]}  Nf6 {[%clk 0:02:07]} 11. Qh4 {[%clk 0:02:43]}  Ng4 {[%clk 0:02:05]} 12. Bd2 {[%clk 0:02:41]}  Qb6 {[%clk 0:01:55]} 13. Bb5 {[%clk 0:02:20]}  a6 {[%clk 0:01:48]} 14. Nd5 {[%clk 0:02:16]}  Qd8 {[%clk 0:01:45]} 15. Be2 {[%clk 0:02:15]}  Nf6 {[%clk 0:01:33]} 16. Bc3 {[%clk 0:02:03]}  Be6 {[%clk 0:01:07]} 17. Nxf6+ {[%clk 0:02:01]}  Bxf6 {[%clk 0:01:03]} 18. Bxf6 {[%clk 0:02:01]}  exf6 {[%clk 0:01:03]} 19. Nf3 {[%clk 0:01:53]}  f5 {[%clk 0:01:01]} 20. exf5 {[%clk 0:01:41]}  Bxf5 {[%clk 0:00:56]} 21. O-O-O {[%clk 0:01:41]}  Qa5 {[%clk 0:00:50]} 22. Rhe1 {[%clk 0:01:29]}  Kf8 {[%clk 0:00:40]} 23. Qf6 {[%clk 0:01:26]}  Rh7 {[%clk 0:00:27]} 24. Qxd6+ {[%clk 0:01:08]}  Kg8 {[%clk 0:00:23]} 25. Ne5 {[%clk 0:01:08]}  Qxa2 {[%clk 0:00:17]} 26. Bc4 {[%clk 0:00:59]}  Qa1+ {[%clk 0:00:11]} 27. Kd2 {[%clk 0:00:59]}  Qa5+ {[%clk 0:00:12]} 28. b4 {[%clk 0:00:49]}  Qxb4+ {[%clk 0:00:10]} 29. Qxb4 {[%clk 0:00:48]}  Nxb4 {[%clk 0:00:10]} 30. g4 {[%clk 0:00:35]}  Be6 {[%clk 0:00:08]} 31. Bxe6 {[%clk 0:00:34]}  fxe6 {[%clk 0:00:08]} 32. Kc3 {[%clk 0:00:29]}  a5 {[%clk 0:00:08]} 33. Kb3 {[%clk 0:00:26]}  Rc8 {[%clk 0:00:05]} 34. c3 {[%clk 0:00:17]}  Nd5 {[%clk 0:00:05]} 35. Rd3 {[%clk 0:00:15]}  Nxf4 {[%clk 0:00:04]} 36. Rf3 {[%clk 0:00:15]}  Nd5 {[%clk 0:00:04]} 37. Rg1 {[%clk 0:00:12]}  Rhc7 {[%clk 0:00:03]} 38. Rgg3 {[%clk 0:00:12]}  b5 {[%clk 0:00:02]} 39. g5 {[%clk 0:00:12]}  h5 {[%clk 0:00:02]} 40. g6 {[%clk 0:00:12]}  b4 {[%clk 0:00:02]} 41. c4 {[%clk 0:00:12]}  Nc3 {[%clk 0:00:00]} 42. Rg5 {[%clk 0:00:09]} 1-0


[Site "https://www.chess.com"]

[Event "Titled Tuesday Blitz May 23 Early 2023"]
[White "Belov, Alexei"]
[Black "Prieto Aranguren, Alain"]
[WhiteFideId "4128206"]
[BlackFideId "2268906"]
[WhiteElo "2496"]
[BlackElo "2209"]
[Result "1-0"]
[Round "08"]
[TimeControl "180+2"]
[Date "2023.05.23"]
[WhiteClock "0:00:46"]
[BlackClock "0:00:17"]

1. e4 {[%clk 0:03:00]}  c6 {[%clk 0:02:55]} 2. d4 {[%clk 0:03:00]}  d5 {[%clk 0:02:55]} 3. Nd2 {[%clk 0:03:01]}  dxe4 {[%clk 0:02:54]} 4. Nxe4 {[%clk 0:03:02]}  Nf6 {[%clk 0:02:55]} 5. Nxf6+ {[%clk 0:03:02]}  exf6 {[%clk 0:02:55]} 6. c3 {[%clk 0:03:02]}  Bd6 {[%clk 0:02:55]} 7. Bd3 {[%clk 0:03:02]}  O-O {[%clk 0:02:55]} 8. Ne2 {[%clk 0:03:03]}  Nd7 {[%clk 0:02:53]} 9. Qc2 {[%clk 0:03:03]}  h5 {[%clk 0:02:53]} 10. Be3 {[%clk 0:03:02]}  Re8 {[%clk 0:02:46]} 11. O-O-O {[%clk 0:03:02]}  b5 {[%clk 0:02:45]} 12. d5 {[%clk 0:02:59]}  cxd5 {[%clk 0:02:39]} 13. Bxb5 {[%clk 0:02:53]}  Rb8 {[%clk 0:02:37]} 14. Rxd5 {[%clk 0:02:47]}  Qe7 {[%clk 0:02:21]} 15. Bxd7 {[%clk 0:02:05]}  Bxd7 {[%clk 0:02:21]} 16. Rhd1 {[%clk 0:02:04]}  Bc6 {[%clk 0:02:00]} 17. Rxd6 {[%clk 0:02:01]}  Be4 {[%clk 0:02:00]} 18. Qa4 {[%clk 0:01:47]}  Qb7 {[%clk 0:01:36]} 19. b3 {[%clk 0:01:42]}  Rec8 {[%clk 0:01:30]} 20. Kb2 {[%clk 0:01:38]}  Bxg2 {[%clk 0:01:25]} 21. Rd7 {[%clk 0:01:29]}  Qf3 {[%clk 0:01:23]} 22. Nf4 {[%clk 0:01:14]}  Bh1 {[%clk 0:01:04]} 23. R1d2 {[%clk 0:00:57]}  Qg4 {[%clk 0:00:33]} 24. Qa3 {[%clk 0:00:48]}  Be4 {[%clk 0:00:26]} 25. Qe7 {[%clk 0:00:47]}  Rf8 {[%clk 0:00:17]} 26. Qxe4 {[%clk 0:00:46]} 1-0


[Site "https://www.chess.com"]

[Event "Titled Tuesday Blitz May 23 Early 2023"]
[White "Wimalasuriya, Kasun M."]
[Black "Rodchenkov, Sergey D."]
[WhiteFideId "9906789"]
[BlackFideId "4168712"]
[WhiteElo "2305"]
[BlackElo "2277"]
[Result "0-1"]
[Round "08"]
[TimeControl "180+2"]
[Date "2023.05.23"]
[WhiteClock "0:02:12"]
[BlackClock "0:00:55"]

1. d4 {[%clk 0:03:00]}  d5 {[%clk 0:03:00]} 2. Nf3 {[%clk 0:03:00]}  Nf6 {[%clk 0:03:00]} 3. g3 {[%clk 0:03:00]}  Bg4 {[%clk 0:02:33]} 4. Ne5 {[%clk 0:02:58]}  Bf5 {[%clk 0:02:32]} 5. Bg2 {[%clk 0:02:58]}  Nbd7 {[%clk 0:02:32]} 6. O-O {[%clk 0:02:58]}  e6 {[%clk 0:02:32]} 7. c4 {[%clk 0:02:58]}  c6 {[%clk 0:02:32]} 8. Nc3 {[%clk 0:02:58]}  Be7 {[%clk 0:02:31]} 9. cxd5 {[%clk 0:02:53]}  exd5 {[%clk 0:02:26]} 10. Re1 {[%clk 0:02:52]}  O-O {[%clk 0:02:27]} 11. Bf4 {[%clk 0:02:48]}  Nxe5 {[%clk 0:02:19]} 12. dxe5 {[%clk 0:02:40]}  Nd7 {[%clk 0:01:36]} 13. e4 {[%clk 0:02:30]}  dxe4 {[%clk 0:01:36]} 14. Bxe4 {[%clk 0:02:27]}  Be6 {[%clk 0:01:27]} 15. Qc2 {[%clk 0:02:26]}  g6 {[%clk 0:01:27]} 16. Rad1 {[%clk 0:02:26]}  Qa5 {[%clk 0:01:24]} 17. a3 {[%clk 0:02:24]}  Rad8 {[%clk 0:01:18]} 18. Bh6 {[%clk 0:02:23]}  Rfe8 {[%clk 0:01:16]} 19. f4 {[%clk 0:02:23]}  Qb6+ {[%clk 0:01:08]} 20. Kg2 {[%clk 0:02:22]}  Nc5 {[%clk 0:01:09]} 21. Bf3 {[%clk 0:02:19]}  Rxd1 {[%clk 0:01:01]} 22. Rxd1 {[%clk 0:02:19]}  Bb3 {[%clk 0:01:00]} 23. Qc1 {[%clk 0:02:14]}  Bxd1 {[%clk 0:00:59]} 24. Bxd1 {[%clk 0:02:15]}  Rd8 {[%clk 0:00:56]} 25. b4 {[%clk 0:02:14]}  Nd3 {[%clk 0:00:56]} 26. Qc2 {[%clk 0:02:12]}  Ne1+ {[%clk 0:00:55]} 0-1


[Site "https://www.chess.com"]

[Event "Titled Tuesday Blitz May 23 Early 2023"]
[White "Castellanos Gomez, Alejandro"]
[Black "Simonovic, Miroslav"]
[WhiteFideId "22284141"]
[BlackFideId "919152"]
[WhiteElo "2158"]
[BlackElo "2042"]
[Result "1-0"]
[Round "08"]
[TimeControl "180+2"]
[Date "2023.05.23"]
[WhiteClock "0:00:11"]
[BlackClock "0:00:28"]

1. d4 {[%clk 0:03:00]}  Nf6 {[%clk 0:02:59]} 2. Bf4 {[%clk 0:03:00]}  c5 {[%clk 0:02:59]} 3. e3 {[%clk 0:03:00]}  b6 {[%clk 0:03:00]} 4. Nd2 {[%clk 0:02:59]}  Bb7 {[%clk 0:03:00]} 5. Ngf3 {[%clk 0:03:00]}  g6 {[%clk 0:02:59]} 6. c3 {[%clk 0:03:00]}  Bg7 {[%clk 0:02:59]} 7. Be2 {[%clk 0:03:01]}  O-O {[%clk 0:02:59]} 8. O-O {[%clk 0:03:02]}  d6 {[%clk 0:03:00]} 9. a4 {[%clk 0:03:01]}  Nbd7 {[%clk 0:03:00]} 10. a5 {[%clk 0:03:01]}  bxa5 {[%clk 0:03:00]} 11. Qa4 {[%clk 0:03:01]}  Nd5 {[%clk 0:02:48]} 12. Bg5 {[%clk 0:02:58]}  h6 {[%clk 0:02:44]} 13. Bh4 {[%clk 0:02:57]}  cxd4 {[%clk 0:02:36]} 14. Nxd4 {[%clk 0:02:50]}  g5 {[%clk 0:02:34]} 15. Bg3 {[%clk 0:02:50]}  Ne5 {[%clk 0:02:17]} 16. Qxa5 {[%clk 0:02:46]}  Nb6 {[%clk 0:02:09]} 17. h4 {[%clk 0:02:17]}  Qc8 {[%clk 0:02:08]} 18. hxg5 {[%clk 0:02:15]}  hxg5 {[%clk 0:02:08]} 19. Qa2 {[%clk 0:02:04]}  Bd5 {[%clk 0:02:05]} 20. Qb1 {[%clk 0:02:04]}  f5 {[%clk 0:01:57]} 21. Ra5 {[%clk 0:01:55]}  f4 {[%clk 0:01:52]} 22. exf4 {[%clk 0:01:54]}  gxf4 {[%clk 0:01:53]} 23. Bh4 {[%clk 0:01:48]}  Rf7 {[%clk 0:01:25]} 24. N2f3 {[%clk 0:01:39]}  Nec4 {[%clk 0:01:18]} 25. Rxd5 {[%clk 0:01:30]}  Nxd5 {[%clk 0:01:17]} 26. Ng5 {[%clk 0:01:30]}  Ne5 {[%clk 0:00:58]} 27. Qh7+ {[%clk 0:01:22]}  Kf8 {[%clk 0:00:57]} 28. Nde6+ {[%clk 0:01:19]}  Ke8 {[%clk 0:00:46]} 29. Bb5+ {[%clk 0:00:46]}  Nc6 {[%clk 0:00:42]} 30. Qg8+ {[%clk 0:00:43]}  Kd7 {[%clk 0:00:35]} 31. Qxf7 {[%clk 0:00:41]}  Bf6 {[%clk 0:00:21]} 32. Nh7 {[%clk 0:00:31]}  Qh8 {[%clk 0:00:19]} 33. Nhf8+ {[%clk 0:00:22]}  Rxf8 {[%clk 0:00:19]} 34. Nxf8+ {[%clk 0:00:22]}  Kc7 {[%clk 0:00:18]} 35. Ng6 {[%clk 0:00:09]}  Qh5 {[%clk 0:00:15]} 36. Bxf6 {[%clk 0:00:07]}  Nxf6 {[%clk 0:00:14]} 37. Bxc6 {[%clk 0:00:05]}  Kxc6 {[%clk 0:00:14]} 38. Qc4+ {[%clk 0:00:04]}  Kd7 {[%clk 0:00:15]} 39. Nxf4 {[%clk 0:00:04]}  Qg4 {[%clk 0:00:14]} 40. Qb5+ {[%clk 0:00:04]}  Kd8 {[%clk 0:00:14]} 41. Qa5+ {[%clk 0:00:04]}  Ke8 {[%clk 0:00:14]} 42. Nh3 {[%clk 0:00:04]}  Qe6 {[%clk 0:00:14]} 43. Qb5+ {[%clk 0:00:03]}  Kf7 {[%clk 0:00:15]} 44. Qd3 {[%clk 0:00:03]}  Kg7 {[%clk 0:00:15]} 45. Nf4 {[%clk 0:00:03]}  Qg4 {[%clk 0:00:15]} 46. Qg3 {[%clk 0:00:03]}  Qxg3 {[%clk 0:00:15]} 47. fxg3 {[%clk 0:00:04]}  Ng4 {[%clk 0:00:16]} 48. Re1 {[%clk 0:00:04]}  Ne3 {[%clk 0:00:17]} 49. Rxe3 {[%clk 0:00:04]}  e5 {[%clk 0:00:18]} 50. Rd3 {[%clk 0:00:04]}  Kf6 {[%clk 0:00:18]} 51. Nd5+ {[%clk 0:00:04]}  Kf5 {[%clk 0:00:19]} 52. Nc7 {[%clk 0:00:05]}  Ke4 {[%clk 0:00:20]} 53. Rxd6 {[%clk 0:00:05]}  Ke3 {[%clk 0:00:19]} 54. Re6 {[%clk 0:00:06]}  e4 {[%clk 0:00:20]} 55. g4 {[%clk 0:00:07]}  a5 {[%clk 0:00:21]} 56. g5 {[%clk 0:00:08]}  a4 {[%clk 0:00:22]} 57. g6 {[%clk 0:00:09]}  a3 {[%clk 0:00:23]} 58. bxa3 {[%clk 0:00:09]}  Kd3 {[%clk 0:00:23]} 59. g7 {[%clk 0:00:09]}  e3 {[%clk 0:00:24]} 60. Nd5 {[%clk 0:00:09]}  e2 {[%clk 0:00:25]} 61. Nf4+ {[%clk 0:00:10]}  Kd2 {[%clk 0:00:25]} 62. Rxe2+ {[%clk 0:00:10]}  Kxc3 {[%clk 0:00:26]} 63. g8=R {[%clk 0:00:07]}  Kc4 {[%clk 0:00:25]} 64. Rd8 {[%clk 0:00:07]}  Kb3 {[%clk 0:00:26]} 65. Re7 {[%clk 0:00:07]}  Ka2 {[%clk 0:00:26]} 66. a4 {[%clk 0:00:08]}  Kb3 {[%clk 0:00:27]} 67. a5 {[%clk 0:00:09]}  Kb4 {[%clk 0:00:27]} 68. a6 {[%clk 0:00:09]}  Kc5 {[%clk 0:00:28]} 69. a7 {[%clk 0:00:10]}  Kb6 {[%clk 0:00:29]} 70. a8=R {[%clk 0:00:10]}  Kc5 {[%clk 0:00:29]} 71. Rac8+ {[%clk 0:00:10]}  Kb5 {[%clk 0:00:30]} 72. Rb7+ {[%clk 0:00:10]}  Ka4 {[%clk 0:00:30]} 73. Rcc7 {[%clk 0:00:10]}  Ka3 {[%clk 0:00:28]} 74. Rd3+ {[%clk 0:00:11]} 1-0


[Site "https://www.chess.com"]

[Event "Titled Tuesday Blitz May 23 Early 2023"]
[White "Artemenko, Oleg"]
[Black "DIM90"]
[WhiteFideId "14201798"]
[WhiteElo "2287"]
[BlackElo "2268"]
[Result "0-1"]
[Round "08"]
[TimeControl "180+2"]
[Date "2023.05.23"]
[WhiteClock "0:00:07"]
[BlackClock "0:00:10"]

1. d4 {[%clk 0:03:00]}  e5 {[%clk 0:03:00]} 2. dxe5 {[%clk 0:02:58]}  Nc6 {[%clk 0:03:00]} 3. Nf3 {[%clk 0:02:57]}  Qe7 {[%clk 0:03:01]} 4. e4 {[%clk 0:02:56]}  Nxe5 {[%clk 0:02:59]} 5. Nc3 {[%clk 0:02:57]}  Nf6 {[%clk 0:02:59]} 6. Bf4 {[%clk 0:02:55]}  d6 {[%clk 0:02:59]} 7. Nxe5 {[%clk 0:02:53]}  dxe5 {[%clk 0:02:59]} 8. Bg5 {[%clk 0:02:54]}  c6 {[%clk 0:02:58]} 9. Qd2 {[%clk 0:02:54]}  Qc7 {[%clk 0:02:58]} 10. O-O-O {[%clk 0:02:54]}  Be6 {[%clk 0:02:58]} 11. f4 {[%clk 0:02:51]}  exf4 {[%clk 0:02:54]} 12. Bxf4 {[%clk 0:02:52]}  Qa5 {[%clk 0:02:53]} 13. Kb1 {[%clk 0:02:21]}  Bb4 {[%clk 0:02:53]} 14. a3 {[%clk 0:02:18]}  Bxc3 {[%clk 0:02:53]} 15. Qxc3 {[%clk 0:02:18]}  Qxc3 {[%clk 0:02:53]} 16. bxc3 {[%clk 0:02:19]}  Nxe4 {[%clk 0:02:53]} 17. Kb2 {[%clk 0:02:18]}  Nf2 {[%clk 0:02:52]} 18. Be2 {[%clk 0:02:13]}  Nxh1 {[%clk 0:02:52]} 19. Rxh1 {[%clk 0:02:13]}  O-O-O {[%clk 0:02:48]} 20. a4 {[%clk 0:02:05]}  Rhe8 {[%clk 0:02:43]} 21. Bd3 {[%clk 0:02:04]}  Bd5 {[%clk 0:02:34]} 22. Rd1 {[%clk 0:01:52]}  g6 {[%clk 0:02:29]} 23. Rb1 {[%clk 0:01:41]}  Bxg2 {[%clk 0:02:11]} 24. Ka3 {[%clk 0:01:41]}  f5 {[%clk 0:02:00]} 25. a5 {[%clk 0:01:37]}  Be4 {[%clk 0:01:54]} 26. Bc4 {[%clk 0:01:29]}  Bxc2 {[%clk 0:01:52]} 27. Rb2 {[%clk 0:01:26]}  Re4 {[%clk 0:01:42]} 28. Bg5 {[%clk 0:01:18]}  Rxc4 {[%clk 0:01:30]} 29. Bxd8 {[%clk 0:01:17]}  Rxc3+ {[%clk 0:01:30]} 30. Kb4 {[%clk 0:01:17]}  Rb3+ {[%clk 0:01:30]} 31. Rxb3 {[%clk 0:01:17]}  Bxb3 {[%clk 0:01:30]} 32. Bg5 {[%clk 0:01:18]}  Bg8 {[%clk 0:01:25]} 33. Be3 {[%clk 0:01:18]}  b6 {[%clk 0:01:12]} 34. axb6 {[%clk 0:01:17]}  axb6 {[%clk 0:01:12]} 35. Bxb6 {[%clk 0:01:18]}  Kd7 {[%clk 0:01:11]} 36. Kc5 {[%clk 0:01:17]}  Bd5 {[%clk 0:01:11]} 37. Kd4 {[%clk 0:01:18]}  g5 {[%clk 0:01:09]} 38. Ke5 {[%clk 0:01:16]}  Be4 {[%clk 0:00:59]} 39. Be3 {[%clk 0:01:09]}  g4 {[%clk 0:00:57]} 40. Bc5 {[%clk 0:01:08]}  h5 {[%clk 0:00:55]} 41. Bf2 {[%clk 0:01:07]}  Kc7 {[%clk 0:00:55]} 42. Kd4 {[%clk 0:00:55]}  Kd6 {[%clk 0:00:54]} 43. Bg3+ {[%clk 0:00:55]}  Ke6 {[%clk 0:00:54]} 44. Bh4 {[%clk 0:00:51]}  Bd5 {[%clk 0:00:52]} 45. Bg5 {[%clk 0:00:50]}  Kf7 {[%clk 0:00:48]} 46. Ke5 {[%clk 0:00:50]}  Kg6 {[%clk 0:00:48]} 47. Be7 {[%clk 0:00:48]}  Bh1 {[%clk 0:00:46]} 48. Kf4 {[%clk 0:00:47]}  Kf7 {[%clk 0:00:44]} 49. Ba3 {[%clk 0:00:45]}  Ke6 {[%clk 0:00:43]} 50. Kg5 {[%clk 0:00:44]}  Ke5 {[%clk 0:00:40]} 51. Bc1 {[%clk 0:00:45]}  Bf3 {[%clk 0:00:35]} 52. Bf4+ {[%clk 0:00:40]}  Ke4 {[%clk 0:00:34]} 53. Bd6 {[%clk 0:00:40]}  Kd5 {[%clk 0:00:33]} 54. Bg3 {[%clk 0:00:39]}  Ke4 {[%clk 0:00:31]} 55. Bf2 {[%clk 0:00:36]}  f4 {[%clk 0:00:28]} 56. Kh4 {[%clk 0:00:33]}  Kf5 {[%clk 0:00:21]} 57. Bc5 {[%clk 0:00:28]}  Kg6 {[%clk 0:00:21]} 58. Bf2 {[%clk 0:00:17]}  Bd5 {[%clk 0:00:22]} 59. h3 {[%clk 0:00:16]}  g3 {[%clk 0:00:19]} 60. Bg1 {[%clk 0:00:16]}  Bf7 {[%clk 0:00:17]} 61. Bh2 {[%clk 0:00:16]}  Kf5 {[%clk 0:00:14]} 62. Bg1 {[%clk 0:00:16]}  Ke4 {[%clk 0:00:14]} 63. Bc5 {[%clk 0:00:16]}  Kf3 {[%clk 0:00:13]} 64. Kg5 {[%clk 0:00:16]}  g2 {[%clk 0:00:12]} 65. Kh4 {[%clk 0:00:12]}  Ke2 {[%clk 0:00:10]} 66. Kg5 {[%clk 0:00:12]}  f3 {[%clk 0:00:10]} 67. Kf4 {[%clk 0:00:07]}  f2 {[%clk 0:00:10]} 0-1


[Site "https://www.chess.com"]